bitfinex-derivatives/quotes_BTCF0:USTF0_20241221
["timestamp","ask_amount","ask_price","bid_price","bid_amount"]
[1734748559685,0.01192845,97401.0,97400.0,0.1]
[1734748560384,0.01192845,97401.0,97400.0,0.104]
[1734748560983,0.24649474,97401.0,97400.0,0.104]
[1734748561288,0.24749474,97401.0,97400.0,0.105]
[1734748561875,0.24949474,97401.0,97400.0,0.104]
[1734748563086,0.24949474,97401.0,97400.0,0.1]
[1734748563392,0.24749474,97401.0,97400.0,0.1]
[1734748563587,0.06584664,97401.0,97400.0,0.1]
[1734748564386,0.06284664,97401.0,97400.0,0.1]
[1734748564685,0.06484664,97401.0,97400.0,0.1]
[1734748564890,0.01492845,97401.0,97400.0,0.1]
[1734748565387,0.00304,97401.0,97400.0,0.47182391]
[1734748565588,0.00204,97401.0,97400.0,0.4608]
[1734748565785,0.15373929,97402.0,97400.0,0.52319374]
[1734748565985,0.15373929,97402.0,97401.0,0.01103674]
[1734748566186,0.15373929,97402.0,97401.0,0.04513674]
[1734748566389,0.12296691,97402.0,97401.0,0.04513674]
[1734748566794,0.12296691,97402.0,97401.0,0.0341]
[1734748567285,0.12496691,97402.0,97401.0,0.0341]
[1734748567899,0.12796691,97402.0,97401.0,0.0341]
[1734748568089,0.09722059,97402.0,97401.0,0.0341]
[1734748571486,0.09722059,97402.0,97400.0,0.512677]
[1734748571686,0.09722059,97402.0,97400.0,0.512157]
[1734748571886,0.01192845,97401.0,97400.0,0.512157]
[1734748572095,0.01192845,97401.0,97400.0,0.4608]
[1734748573508,0.01592845,97401.0,97400.0,0.4608]
[1734748575299,0.16967313,97401.0,97400.0,0.4608]
[1734748576004,0.16867313,97401.0,97400.0,0.4608]
[1734748576299,0.16967313,97401.0,97400.0,0.4608]
[1734748576899,0.15778468,97401.0,97400.0,0.4608]
[1734748581591,0.16961684,97401.0,97400.0,0.4608]
[1734748582498,0.16961684,97401.0,97400.0,0.1]
[1734748583009,0.15778468,97401.0,97400.0,0.1]
[1734748583692,0.16961829,97401.0,97400.0,0.1]
[1734748585806,0.06580223,97401.0,97400.0,0.1]
[1734748586005,0.05396862,97401.0,97400.0,0.1]
[1734748587505,0.00404,97401.0,97400.0,0.1]
[1734748588601,0.05396862,97401.0,97400.0,0.1]
[1734748592700,0.0658146,97401.0,97400.0,0.1]
[1734748595103,0.05396862,97401.0,97400.0,0.1]
[1734748595306,0.06580755,97401.0,97400.0,0.1]
[1734748602906,0.05396862,97401.0,97400.0,0.1]
[1734748603709,0.06585188,97401.0,97400.0,0.1]
[1734748604413,0.21517145,97414.0,97413.0,0.051351]
[1734748604815,0.21517145,97414.0,97413.0,0.051431]
[1734748605711,0.22417145,97414.0,97413.0,0.051431]
[1734748606211,0.22817145,97414.0,97413.0,0.051431]
[1734748606415,0.16687961,97414.0,97413.0,0.051431]
[1734748607714,0.013,97414.0,97413.0,0.051431]
[1734748609314,0.013,97414.0,97413.0,0.0614439]
[1734748609621,0.004,97414.0,97413.0,0.0614439]
[1734748609818,0.15387961,97417.0,97416.0,0.051349]
[1734748610817,0.15387961,97419.0,97418.0,0.051348]
[1734748611023,0.15387961,97419.0,97418.0,0.412148]
[1734748611208,0.15387961,97419.0,97418.0,0.412228]
[1734748611913,0.15387961,97422.0,97421.0,0.051346]
[1734748612319,0.15387961,97422.0,97421.0,0.051426]
[1734748612713,0.15387961,97422.0,97421.0,0.412226]
[1734748613326,0.15387961,97423.0,97421.0,0.412226]
[1734748613729,0.15387961,97423.0,97422.0,8e-05]
[1734748615322,0.15487961,97423.0,97422.0,8e-05]
[1734748615825,0.15387961,97423.0,97422.0,8e-05]
[1734748616024,0.15587961,97423.0,97422.0,8e-05]
[1734748616219,0.1013,97423.0,97422.0,8e-05]
[1734748617420,0.1003,97423.0,97422.0,8e-05]
[1734748617622,0.1023,97423.0,97422.0,8e-05]
[1734748617821,0.051352,97411.0,97410.0,0.0664462]
[1734748618018,0.051352,97411.0,97405.0,0.051354]
[1734748618219,0.051392,97411.0,97405.0,0.051354]
[1734748618625,0.01182399,97410.0,97405.0,0.051354]
[1734748619014,0.01182399,97409.0,97405.0,0.051354]
[1734748619225,0.15362611,97406.0,97404.0,0.01014072]
[1734748619422,0.15362611,97406.0,97405.0,0.051355]
[1734748619925,0.16546475,97406.0,97405.0,0.051355]
[1734748620821,0.16646475,97406.0,97405.0,0.051355]
[1734748621126,0.15462611,97406.0,97405.0,0.051355]
[1734748621324,0.15662611,97406.0,97405.0,0.051355]
[1734748622424,0.003,97406.0,97405.0,0.051355]
[1734748623626,0.002,97406.0,97405.0,0.052355]
[1734748623923,0.09216854,97409.0,97408.0,0.051353]
[1734748624433,0.09216854,97409.0,97408.0,8e-05]
[1734748624434,0.14352154,97409.0,97408.0,8e-05]
[1734748625223,0.15397337,97409.0,97408.0,8e-05]
[1734748625422,0.06180483,97409.0,97408.0,8e-05]
[1734748626030,0.06180483,97409.0,97408.0,0.00108]
[1734748626031,0.051353,97409.0,97408.0,0.00108]
[1734748626231,0.0317,97410.0,97408.0,0.00108]
[1734748626437,4e-05,97411.0,97408.0,0.00108]
[1734748626620,4e-05,97411.0,97408.0,0.00308]
[1734748626826,4e-05,97411.0,97410.0,0.36088]
[1734748627531,0.00104,97411.0,97410.0,8e-05]
[1734748627733,0.052392,97411.0,97410.0,8e-05]
[1734748627927,0.054392,97411.0,97410.0,8e-05]
[1734748628437,0.2070494,97411.0,97410.0,8e-05]
[1734748629729,0.10231677,97411.0,97410.0,8e-05]
[1734748629931,0.10531677,97411.0,97410.0,8e-05]
[1734748630231,0.46611677,97411.0,97410.0,8e-05]
[1734748630824,0.414192,97411.0,97410.0,8e-05]
[1734748631028,0.416192,97411.0,97410.0,8e-05]
[1734748631231,0.418192,97411.0,97410.0,8e-05]
[1734748631431,0.414192,97411.0,97410.0,8e-05]
[1734748631630,0.419192,97411.0,97410.0,8e-05]
[1734748632434,0.46911677,97411.0,97410.0,8e-05]
[1734748633031,0.47111677,97411.0,97410.0,0.00108]
[1734748633426,0.051357,97401.0,97400.0,0.1]
[1734748633738,0.412157,97401.0,97400.0,0.1]
[1734748634524,0.413157,97401.0,97400.0,0.1]
[1734748634736,0.416157,97401.0,97400.0,0.1]
[1734748635128,0.416157,97401.0,97400.0,0.048]
[1734748635332,0.051368,97380.0,97373.0,0.051371]
[1734748635629,4e-05,97377.0,97375.0,0.01001876]
[1734748636628,0.00104,97377.0,97376.0,0.00654027]
[1734748636835,0.00104,97377.0,97376.0,0.00954027]
[1734748641137,0.12284929,97389.0,97388.0,0.051364]
[1734748641325,0.12284929,97389.0,97388.0,0.412164]
[1734748641525,0.12284929,97389.0,97388.0,0.412244]
[1734748642440,0.12284929,97396.0,97395.0,0.05136]
[1734748642835,0.12284929,97396.0,97395.0,0.05144]
[1734748643532,0.001,97396.0,97395.0,8e-05]
[1734748643740,0.001,97396.0,97395.0,0.05144]
[1734748644135,0.002,97396.0,97395.0,0.05144]
[1734748649443,0.002,97396.0,97395.0,0.06185273]
[1734748650639,0.001,97396.0,97395.0,0.06185273]
[1734748650845,0.12285251,97401.0,97400.0,0.051357]
[1734748651048,0.12285251,97401.0,97400.0,0.412157]
[1734748651231,0.07295251,97401.0,97400.0,0.412237]
[1734748651944,4e-05,97411.0,97410.0,0.051352]
[1734748652241,4e-05,97411.0,97410.0,0.412232]
[1734748653446,0.01004,97411.0,97410.0,0.413232]
[1734748658938,0.01004,97411.0,97410.0,0.42368302]
[1734748667855,0.00704,97411.0,97410.0,0.42268302]
[1734748668054,0.00604,97411.0,97410.0,0.42268302]
[1734748672256,1e-06,97411.0,97410.0,0.42268302]
[1734748672556,0.14752261,97419.0,97418.0,0.051348]
[1734748672745,0.14752261,97419.0,97418.0,0.412148]
[1734748673066,0.14752261,97419.0,97418.0,0.412228]
[1734748673857,0.007,97419.0,97418.0,0.413228]
[1734748674451,0.18427393,97436.0,97435.0,0.051339]
[1734748674656,0.18427393,97436.0,97435.0,0.412139]
[1734748674850,0.18427393,97436.0,97435.0,0.412179]
[1734748675445,0.18427393,97442.0,97435.0,0.36084]
[1734748675646,0.18427393,97442.0,97440.0,0.051336]
[1734748675851,0.18427393,97442.0,97441.0,4e-05]
[1734748677158,0.18427393,97443.0,97441.0,0.051375]
[1734748677548,0.18427393,97443.0,97442.0,4e-05]
[1734748678556,0.20127393,97443.0,97442.0,4e-05]
[1734748679157,0.19327393,97443.0,97442.0,4e-05]
[1734748679356,0.20127393,97443.0,97442.0,0.00104]
[1734748680049,0.017,97443.0,97442.0,0.00204]
[1734748682564,0.18427393,97445.0,97442.0,0.36184]
[1734748682862,4.5e-07,97458.0,97457.0,0.051327]
[1734748683068,0.37662754,97464.0,97463.0,0.051324]
[1734748683257,0.52611498,97470.0,97469.0,0.051321]
[1734748683457,0.52611498,97470.0,97469.0,0.412121]
[1734748683655,0.52611498,97470.0,97469.0,0.412161]
[1734748684169,0.52523497,97470.0,97469.0,0.412161]
[1734748684362,0.05131,97490.0,97477.0,0.051317]
[1734748684562,0.05131,97490.0,97480.0,0.13276172]
[1734748684761,0.05131,97490.0,97477.0,0.412117]
[1734748684762,0.05131,97490.0,97489.0,4e-05]
[1734748685368,0.3608,97492.0,97489.0,4e-05]
[1734748685570,0.0327,97498.0,97489.0,4e-05]
[1734748685771,0.0327,97498.0,97485.0,0.3608]
[1734748685772,0.0327,97498.0,97493.0,0.3608]
[1734748685974,0.0631,97516.0,97497.0,0.051346]
[1734748686269,0.0117965,97515.0,97497.0,0.051346]
[1734748686471,0.0117965,97515.0,97499.0,4e-05]
[1734748686664,0.01037318,97515.0,97499.0,4e-05]
[1734748687063,0.051297,97514.0,97499.0,4e-05]
[1734748689158,0.01037318,97515.0,97499.0,4e-05]
[1734748689365,0.0631,97516.0,97499.0,4e-05]
[1734748690170,0.101,97500.0,97499.0,4e-05]
[1734748691573,0.101,97500.0,97499.0,0.01029146]
[1734748691772,0.3608,97509.0,97499.0,0.01029146]
[1734748691976,0.3608,97509.0,97503.0,0.10107209]
[1734748692180,0.3608,97509.0,97508.0,4e-05]
[1734748692570,0.7216,97509.0,97508.0,4e-05]
[1734748693276,0.73194977,97509.0,97508.0,4e-05]
[1734748693779,0.73294977,97509.0,97508.0,4e-05]
[1734748694577,0.73494977,97509.0,97508.0,4e-05]
[1734748695270,0.73494977,97509.0,97489.0,0.3608]
[1734748695271,0.051301,97507.0,97489.0,0.3608]
[1734748695468,0.05131,97491.0,97489.0,0.3608]
[1734748695672,0.051311,97489.0,97480.0,0.3608]
[1734748696069,0.00064001,97481.0,97480.0,0.3608]
[1734748696273,0.00064001,97481.0,97475.0,0.051318]
[1734748696669,0.00064001,97476.0,97475.0,0.051318]
[1734748697278,0.41275701,97476.0,97466.0,0.051322]
[1734748697472,0.36144001,97476.0,97460.0,0.10107209]
[1734748697675,0.00064001,97470.0,97469.0,0.051361]
[1734748698381,0.00064001,97470.0,97469.0,0.082861]
[1734748699573,0.00064001,97470.0,97469.0,0.083861]
[1734748699987,0.00064001,97470.0,97469.0,0.086861]
[1734748700281,0.00064001,97470.0,97469.0,0.085861]
[1734748700485,0.00064001,97470.0,97469.0,0.092861]
[1734748700876,0.00064001,97470.0,97469.0,0.10315265]
[1734748701077,0.00060001,97470.0,97469.0,0.10315265]
[1734748701279,0.00060001,97470.0,97469.0,0.13505265]
[1734748701677,0.00060001,97470.0,97469.0,0.13405265]
[1734748702575,0.00060001,97470.0,97469.0,0.13105265]
[1734748702880,0.00060001,97470.0,97469.0,0.13305265]
[1734748706589,0.01177201,97488.0,97477.0,0.051316]
[1734748706789,0.01177519,97487.0,97480.0,0.3608]
[1734748707183,0.01177519,97489.0,97480.0,0.3608]
[1734748707381,0.01177519,97486.0,97480.0,0.3608]
[1734748707582,0.01177519,97485.0,97480.0,0.3608]
[1734748707983,0.01177519,97484.0,97480.0,0.3608]
[1734748708184,0.01177519,97489.0,97480.0,0.3608]
[1734748708385,0.01177519,97488.0,97480.0,0.001]
[1734748708584,0.01177519,97488.0,97480.0,0.3618]
[1734748708895,0.01177519,97487.0,97480.0,0.3618]
[1734748709285,0.01177519,97487.0,97485.0,0.051312]
[1734748709486,0.01177519,97486.0,97485.0,0.051312]
[1734748709687,0.01177519,97494.0,97481.0,0.0313]
[1734748709887,0.01177519,97493.0,97488.0,0.412111]
[1734748710288,0.01177519,97492.0,97488.0,0.412111]
[1734748710487,0.01177519,97491.0,97488.0,0.412111]
[1734748711002,0.01177519,97490.0,97488.0,0.412111]
[1734748711293,0.01177519,97489.0,97488.0,0.412111]
[1734748712095,0.051308,97495.0,97488.0,0.412111]
[1734748712294,0.3608,97494.0,97483.0,0.28521765]
[1734748712490,0.051311,97488.0,97485.0,0.18414556]
[1734748712699,0.0626,97487.0,97485.0,0.18414556]
[1734748713804,0.113912,97487.0,97483.0,0.10107209]
[1734748715402,0.113912,97487.0,97484.0,0.051313]
[1734748716005,0.113912,97487.0,97486.0,0.18398552]
[1734748716399,0.12575538,97487.0,97486.0,0.18398552]
[1734748716598,0.07444338,97487.0,97486.0,0.18398552]
[1734748717001,0.01184338,97487.0,97486.0,0.18398552]
[1734748719109,0.3608,97494.0,97484.0,0.18398552]
[1734748719308,0.001,97487.0,97485.0,0.051313]
[1734748719905,0.01188052,97486.0,97485.0,0.051313]
[1734748720305,0.01188052,97486.0,97484.0,0.18398552]
[1734748720508,0.01188052,97486.0,97484.0,0.08418552]
[1734748720509,0.3608,97485.0,97484.0,0.08418552]
[1734748720711,0.3608,97485.0,97478.0,0.24651758]
[1734748720712,0.051316,97479.0,97478.0,0.24599758]
[1734748721712,0.06320052,97479.0,97478.0,0.24599758]
[1734748721902,0.01188452,97479.0,97469.0,4e-05]
[1734748722104,0.3608,97470.0,97469.0,4e-05]
[1734748722612,0.3726803,97470.0,97469.0,4e-05]
[1734748725211,0.3726803,97470.0,97469.0,0.051361]
[1734748725624,0.0118803,97470.0,97469.0,0.051361]
[1734748725826,0.0128803,97470.0,97469.0,0.051361]
[1734748726027,0.0128803,97470.0,97469.0,0.412161]
[1734748726419,0.001,97470.0,97469.0,0.412161]
[1734748726728,0.001,97470.0,97469.0,0.415161]
[1734748727120,0.001,97470.0,97469.0,0.412161]
[1734748727424,0.001,97470.0,97469.0,0.418161]
[1734748727625,0.0118803,97475.0,97474.0,0.051318]
[1734748728024,0.0118803,97475.0,97474.0,0.051358]
[1734748729322,0.0118803,97475.0,97474.0,4e-05]
[1734748729722,0.0118803,97475.0,97474.0,0.00104]
[1734748730415,0.0118803,97475.0,97474.0,0.00304]
[1734748731129,0.0118803,97475.0,97474.0,0.00104]
[1734748731721,0.0118803,97475.0,97474.0,4e-05]
[1734748735530,0.0118803,97475.0,97474.0,0.03084]
[1734748736135,0.0118803,97475.0,97474.0,0.03184]
[1734748738336,0.3608,97490.0,97488.0,0.051311]
[1734748738738,0.3608,97490.0,97489.0,0.03164]
[1734748740337,0.3638,97490.0,97489.0,0.03164]
[1734748740729,0.3638,97490.0,97489.0,4e-05]
[1734748745133,0.003,97490.0,97489.0,4e-05]
[1734748746738,0.003,97490.0,97489.0,0.07550757]
[1734748747532,0.18440397,97492.0,97489.0,0.07550757]
[1734748747533,0.18440397,97492.0,97490.0,0.05131]
[1734748747840,0.03470397,97492.0,97491.0,4e-05]
[1734748748137,0.41260501,97538.0,97491.0,4e-05]
[1734748748138,0.03470397,97507.0,97491.0,4e-05]
[1734748748436,0.00041844,97507.0,97506.0,0.412142]
[1734748749040,0.21344703,97519.0,97518.0,0.051295]
[1734748749234,0.21344703,97519.0,97518.0,0.412095]
[1734748749436,0.21344703,97519.0,97518.0,0.412135]
[1734748749942,0.01183331,97540.0,97518.0,0.36084]
[1734748750141,0.051284,97539.0,97530.0,0.3608]
[1734748750440,0.06311731,97539.0,97530.0,0.412089]
[1734748750635,0.01015525,97543.0,97530.0,0.3608]
[1734748750841,0.051287,97535.0,97529.0,0.10107209]
[1734748751639,0.006,97539.0,97529.0,0.10107209]
[1734748751936,0.051287,97534.0,97530.0,0.001]
[1734748752133,0.051288,97531.0,97530.0,0.001]
[1734748752336,0.051294,97521.0,97520.0,0.10107209]
[1734748752525,0.3608,97521.0,97511.0,0.10107209]
[1734748752734,0.051296,97517.0,97511.0,0.15237109]
[1734748753130,0.0324,97520.0,97511.0,0.15237109]
[1734748753440,0.051297,97516.0,97511.0,0.15237109]
[1734748753626,0.051297,97515.0,97511.0,0.15237109]
[1734748754340,0.051298,97514.0,97511.0,0.15237109]
[1734748754639,0.051298,97514.0,97511.0,0.051299]
[1734748755847,0.052298,97514.0,97511.0,0.051299]
[1734748756144,0.3608,97512.0,97504.0,0.10107209]
[1734748756348,0.412099,97512.0,97504.0,0.10107209]
[1734748756643,0.412099,97512.0,97505.0,0.051302]
[1734748756938,0.051299,97511.0,97505.0,0.051302]
[1734748757145,0.3608,97512.0,97505.0,0.051302]
[1734748757442,0.412098,97512.0,97511.0,4e-05]
[1734748758932,0.413098,97512.0,97511.0,4e-05]
[1734748760449,0.412098,97512.0,97511.0,4e-05]
[1734748760637,0.414098,97512.0,97511.0,4e-05]
[1734748763243,0.42591101,97512.0,97511.0,4e-05]
[1734748763537,0.414098,97512.0,97511.0,4e-05]
[1734748764346,0.412098,97512.0,97511.0,4e-05]
[1734748764543,0.415098,97512.0,97511.0,4e-05]
[1734748764939,0.4268946,97512.0,97511.0,4e-05]
[1734748765135,0.415098,97512.0,97511.0,4e-05]
[1734748765340,0.054298,97512.0,97511.0,4e-05]
[1734748766046,0.415098,97512.0,97511.0,4e-05]
[1734748766348,0.4268946,97512.0,97511.0,4e-05]
[1734748767336,0.4248946,97512.0,97511.0,4e-05]
[1734748768142,0.413098,97512.0,97511.0,4e-05]
[1734748768644,0.0117966,97518.0,97511.0,4e-05]
[1734748768953,0.002,97512.0,97511.0,0.112899]
[1734748769650,0.0137966,97512.0,97511.0,0.082199]
[1734748770344,0.0137966,97512.0,97511.0,0.0309]
[1734748770745,0.0137966,97512.0,97503.0,0.3608]
[1734748770746,0.0137966,97512.0,97505.0,0.051302]
[1734748771051,0.051301,97508.0,97505.0,0.051302]
[1734748771639,0.051303,97504.0,97503.0,0.3608]
[1734748771846,0.0513,97510.0,97507.0,0.051301]
[1734748772855,0.011804,97509.0,97503.0,0.3608]
[1734748773044,0.051302,97505.0,97503.0,0.3608]
[1734748774039,0.051302,97505.0,97502.0,0.051303]
[1734748775158,0.051299,97511.0,97503.0,0.3608]
[1734748775452,0.3608,97513.0,97507.0,0.051301]
[1734748775653,0.051301,97508.0,97507.0,0.051301]
[1734748778446,0.051301,97507.0,97502.0,0.051303]
[1734748779052,0.3608,97513.0,97500.0,0.10107209]
[1734748779255,0.3608,97513.0,97511.0,0.051299]
[1734748779552,0.3608,97513.0,97512.0,4e-05]
[1734748779955,0.18391596,97516.0,97515.0,0.051297]
[1734748780245,0.18391596,97516.0,97515.0,0.051337]
[1734748780444,0.03421596,97516.0,97515.0,0.051337]
[1734748780653,0.03421596,97518.0,97517.0,0.051296]
[1734748780852,0.03421596,97518.0,97517.0,0.412096]
[1734748781052,0.03421596,97518.0,97517.0,0.412136]
[1734748781556,8e-05,97525.0,97524.0,0.051292]
[1734748781760,8e-05,97525.0,97524.0,0.412092]
[1734748782058,8e-05,97525.0,97524.0,0.412132]
[1734748783360,0.00308,97525.0,97524.0,0.412132]
[1734748783846,0.00308,97525.0,97524.0,0.413132]
[1734748784049,8e-05,97525.0,97524.0,0.413132]
[1734748784250,8e-05,97525.0,97524.0,0.412132]
[1734748789354,0.01032976,97547.0,97524.0,0.412132]
[1734748789559,0.01032976,97547.0,97535.0,0.412086]
[1734748789769,0.01032976,97547.0,97535.0,0.412126]
[1734748790467,0.062,97550.0,97535.0,0.412126]
[1734748791448,0.00208,97536.0,97535.0,0.412126]
[1734748794962,8e-05,97536.0,97535.0,0.412126]
[1734748796063,8e-05,97536.0,97535.0,0.42233113]
[1734748799060,8e-05,97536.0,97535.0,0.42433113]
[1734748799764,8e-05,97536.0,97535.0,0.42533113]
[1734748805863,8e-05,97536.0,97535.0,0.37543113]
[1734748814273,0.24662295,97558.0,97535.0,0.32414513]
[1734748814471,0.0322,97557.0,97552.0,0.3608]
[1734748814680,0.0322,97557.0,97556.0,0.051275]
[1734748815580,0.04400777,97557.0,97556.0,0.051275]
[1734748815978,0.04400777,97557.0,97552.0,0.3608]
[1734748816474,0.185746,97557.0,97552.0,0.3608]
[1734748817380,0.187746,97557.0,97552.0,0.3608]
[1734748817587,0.153546,97556.0,97552.0,0.3608]
[1734748818680,0.153546,97556.0,97554.0,0.051276]
[1734748819676,0.155546,97556.0,97554.0,0.051276]
[1734748819878,0.002,97556.0,97554.0,0.051276]
[1734748820383,0.002,97556.0,97554.0,0.06153662]
[1734748824484,0.155546,97556.0,97554.0,0.06153662]
[1734748824986,0.155546,97556.0,97554.0,0.01026062]
[1734748825188,0.206821,97556.0,97547.0,0.051279]
[1734748825489,0.206821,97556.0,97550.0,0.051278]
[1734748825786,0.206821,97556.0,97551.0,0.051278]
[1734748825991,0.002,97556.0,97554.0,0.051276]
[1734748826390,0.01182208,97555.0,97554.0,0.051276]
[1734748829290,0.01382208,97555.0,97554.0,0.051276]
[1734748830387,0.002,97555.0,97550.0,0.051278]
[1734748830587,0.01385817,97555.0,97550.0,0.051278]
[1734748830792,0.01185817,97554.0,97550.0,0.051278]
[1734748831092,0.01185817,97553.0,97550.0,0.051278]
[1734748831501,0.01185817,97552.0,97550.0,0.051278]
[1734748831693,0.01185817,97551.0,97550.0,0.051278]
[1734748832598,0.01185817,97551.0,97536.0,0.24504169]
[1734748832803,0.051281,97545.0,97537.0,0.051285]
[1734748832996,0.01182152,97550.0,97549.0,0.051279]
[1734748833592,0.002,97551.0,97549.0,0.051279]
[1734748834501,0.002,97551.0,97550.0,4e-05]
[1734748835296,0.01382152,97551.0,97550.0,4e-05]
[1734748835703,0.01182152,97552.0,97550.0,4e-05]
[1734748835902,0.01182152,97552.0,97551.0,0.051278]
[1734748836292,0.01182152,97552.0,97551.0,0.051318]
[1734748836701,0.153546,97554.0,97553.0,0.051277]
[1734748836905,0.0631,97558.0,97553.0,0.051277]
[1734748836906,0.01182152,97557.0,97556.0,0.051275]
[1734748837298,0.01182152,97557.0,97556.0,0.051315]
[1734748838404,0.16541266,97557.0,97556.0,4e-05]
[1734748839501,0.01182152,97557.0,97556.0,4e-05]
[1734748839700,0.21344703,97574.0,97573.0,0.051266]
[1734748839899,0.21344703,97574.0,97573.0,0.772866]
[1734748840310,0.21344703,97574.0,97573.0,0.772906]
[1734748840702,0.15364541,97574.0,97573.0,0.772906]
[1734748840902,0.15664541,97574.0,97573.0,0.772906]
[1734748841106,0.00452544,97574.0,97573.0,0.772906]
[1734748841307,0.00452544,97574.0,97573.0,0.412106]
[1734748841507,0.05579144,97574.0,97573.0,4e-05]
[1734748842009,0.054266,97574.0,97573.0,0.18360854]
[1734748842407,0.003,97574.0,97573.0,0.18360854]
[1734748843307,0.051264,97578.0,97573.0,0.18360854]
[1734748843610,0.001,97574.0,97573.0,0.18356854]
[1734748843807,0.001,97574.0,97571.0,0.3608]
[1734748844007,0.0321,97573.0,97571.0,0.3608]
[1734748844608,0.001,97578.0,97577.0,0.051264]
[1734748846216,0.0328,97590.0,97571.0,0.3608]
[1734748846417,0.3608,97598.0,97594.0,0.051255]
[1734748846606,0.0643,97599.0,97596.0,0.051254]
[1734748846807,0.0643,97599.0,97597.0,0.412053]
[1734748847007,0.0643,97599.0,97598.0,4e-05]
[1734748847916,0.0693,97599.0,97598.0,4e-05]
[1734748848308,0.0693,97599.0,97598.0,0.00104]
[1734748849518,0.0317,97599.0,97598.0,0.00104]
[1734748849715,0.0367,97599.0,97598.0,0.00104]
[1734748850416,0.005,97599.0,97598.0,0.00104]
[1734748853005,0.005,97599.0,97598.0,0.36184]
[1734748853315,0.087253,97599.0,97598.0,0.00104]
[1734748857217,0.036,97599.0,97598.0,0.00104]
[1734748857514,0.005,97599.0,97598.0,0.00104]
[1734748858011,0.005,97599.0,97598.0,0.36184]
[1734748858516,0.005,97599.0,97598.0,0.37210593]
[1734748858917,0.1,97600.0,97599.0,0.051253]
[1734748859215,0.1,97600.0,97599.0,0.051293]
[1734748860711,0.103,97600.0,97599.0,0.051293]
[1734748861420,0.1,97600.0,97599.0,0.051293]
[1734748861610,0.101,97600.0,97599.0,0.051293]
[1734748872424,0.101,97600.0,97599.0,4e-05]
[1734748874718,0.051226,97649.0,97626.0,0.051238]
[1734748874922,0.10276831,97637.0,97630.0,0.3608]
[1734748875120,0.00836831,97636.0,97630.0,0.3608]
[1734748875322,0.00836831,97635.0,97630.0,0.3608]
[1734748875524,0.00836831,97634.0,97630.0,0.3608]
[1734748875825,0.00836831,97633.0,97620.0,0.1009377]
[1734748876027,0.00836831,97632.0,97620.0,0.1009377]
[1734748876228,0.00836831,97631.0,97620.0,0.1009377]
[1734748876434,0.00836831,97630.0,97620.0,0.1009377]
[1734748876634,0.00836831,97629.0,97620.0,0.1009377]
[1734748876923,0.3608,97636.0,97620.0,0.1009377]
[1734748876924,0.00836831,97628.0,97620.0,0.1009377]
[1734748877117,0.36916831,97627.0,97618.0,0.3608]
[1734748877322,0.051239,97624.0,97618.0,0.3608]
[1734748877517,0.00836831,97623.0,97618.0,0.3608]
[1734748877823,0.3608,97619.0,97612.0,0.18317466]
[1734748878023,0.00836831,97618.0,97612.0,0.18317466]
[1734748878330,0.3608,97619.0,97608.0,0.051248]
[1734748878529,0.00836491,97618.0,97608.0,0.051248]
[1734748878715,0.3608,97619.0,97608.0,0.051248]
[1734748878716,0.00836491,97617.0,97608.0,0.051248]
[1734748878921,0.00836491,97616.0,97608.0,0.051248]
[1734748879123,0.00836491,97615.0,97608.0,0.051248]
[1734748879324,0.00836491,97614.0,97608.0,0.051248]
[1734748879530,0.3608,97610.0,97600.0,0.47184574]
[1734748879833,0.0083631,97609.0,97601.0,0.051252]
[1734748880031,0.3608,97602.0,97601.0,0.051252]
[1734748880229,0.0083631,97602.0,97601.0,0.051252]
[1734748881217,0.0083631,97602.0,97601.0,0.053252]
[1734748882632,0.0083631,97602.0,97601.0,0.052252]
[1734748882834,0.0083631,97602.0,97601.0,0.053252]
[1734748883731,0.0083631,97602.0,97601.0,0.052252]
[1734748884032,0.0083631,97602.0,97601.0,0.053252]
[1734748885526,0.00837231,97602.0,97601.0,0.053252]
[1734748885930,0.01192351,97619.0,97615.0,0.051244]
[1734748886130,0.412036,97630.0,97619.0,0.051242]
[1734748886131,0.01192351,97623.0,97619.0,0.051242]
[1734748886325,0.01192351,97622.0,97619.0,0.051242]
[1734748886728,0.01192351,97621.0,97619.0,0.051242]
[1734748887131,0.3608,97630.0,97619.0,0.051242]
[1734748887132,0.01192351,97620.0,97619.0,0.051242]
[1734748888326,0.54541049,97630.0,97619.0,0.051242]
[1734748888637,0.01194518,97620.0,97619.0,0.051242]
[1734748889426,0.01194518,97620.0,97609.0,0.1009377]
[1734748889630,0.01194518,97620.0,97610.0,0.051247]
[1734748889936,0.07504518,97619.0,97610.0,0.051247]
[1734748890128,0.04244518,97618.0,97610.0,0.051247]
[1734748890326,0.01194518,97617.0,97610.0,0.051247]
[1734748890527,0.0305,97618.0,97610.0,0.051247]
[1734748890528,0.01194518,97616.0,97610.0,0.051247]
[1734748890723,0.01194518,97615.0,97610.0,0.051247]
[1734748890927,0.01194518,97615.0,97610.0,0.054247]
[1734748891128,0.01194518,97614.0,97610.0,0.054247]
[1734748891323,0.01194518,97622.0,97610.0,0.054247]
[1734748891729,0.01194518,97621.0,97610.0,0.054247]
[1734748891927,0.01194518,97620.0,97610.0,0.056247]
[1734748892128,0.18401048,97628.0,97615.0,0.051244]
[1734748892129,0.01194518,97619.0,97615.0,0.051244]
[1734748892340,0.01194518,97618.0,97617.0,0.051243]
[1734748892741,0.01194518,97618.0,97610.0,0.004]
[1734748892742,0.01194518,97623.0,97610.0,0.004]
[1734748892941,0.01194518,97623.0,97610.0,0.001]
[1734748893145,0.01194518,97622.0,97610.0,0.003]
[1734748893343,0.412045,97614.0,97610.0,0.003]
[1734748893545,0.051246,97612.0,97610.0,0.001]
[1734748893739,0.01194518,97611.0,97610.0,0.001]
[1734748894139,0.07534518,97611.0,97610.0,0.001]
[1734748894738,0.07534518,97611.0,97604.0,0.18342171]
[1734748895035,0.01194518,97610.0,97604.0,0.18342171]
[1734748895233,0.01194518,97609.0,97603.0,0.05125]